Cogmind - Beta 15 @@@ ROGUE MODE // 2025.08.02 @ 18:56:46 Player: Skysub Result: Destroyed by G-34 Mercenary with Small Laser Performance ------------- Evolutions (0) 0 Regions Visited (1) 200 Robots Destroyed (19) 95 Value Destroyed (547) 547 Prototype IDs (0) 0 Alien Tech Used (0) 0 Bonus (0) 0 TOTAL SCORE: 842 Bonus ------- None Cogmind --------- Core Integrity 0/250 Matter 290/300 Energy 265/265 System Corruption 0% Temperature Cool (30) Movement Rolling (145) Ox3 Location -10/Materials Parts ------- > --- POWER (1) -------- Improved Ion Engine > --- PROPULSION (2) --- Compact Wheel > --- UTILITY (2) ------ Improved Heat Sink High-capacity Storage Unit > --- WEAPON (2) ------- Medium Laser Small Laser > --- INVENTORY (20) --- Ion Engine Light Nuclear Core Structural Scanner Signal Interpreter Seismic Detector Grenade Launcher Rocket Launcher Rocket Launcher Peak State ------------ > --- POWER ------------ Improved Ion Engine > --- PROPULSION ------- Compact Wheel > --- UTILITY ---------- Improved Heat Sink High-capacity Storage Unit > --- WEAPON ----------- Medium Laser Small Laser > --- INVENTORY -------- Ion Engine Light Nuclear Core Structural Scanner Signal Interpreter Seismic Detector Grenade Launcher Rocket Launcher Rocket Launcher [Rating: 10] Favorites ----------- Power Light Ion Engine Engine Light Ion Engine Propulsion Light Treads Treads Light Treads Wheel Compact Wheel Utility Seismic Detector Device Seismic Detector Storage High-capacity Storage Unit Weapon Light Assault Rifle Energy Gun Medium Laser Ballistic Gun Light Assault Rifle Build | -11 -10 ------- Run | Yrd Mat Slots Evolved . | . . Power . | . . Propulsion . | . . Utility . | . . Weapon . | . . Parts Attached 16 | 7 9 Power 3 | 1 2 Engine 3 | 1 2 Core . | . . Reactor . | . . Propulsion 5 | 2 3 Treads 2 | 2 . Leg . | . . Wheel 3 | . 3 Hover . | . . Flight . | . . Utility 4 | 2 2 Device 2 | 1 1 Storage 2 | 1 1 Processor . | . . Hackware . | . . Protection . | . . Artifact . | . . Weapon 4 | 2 2 Energy Gun 2 | . 2 Energy Cannon . | . . Ballistic Gun 2 | 2 . Ballistic Cannon . | . . Launcher . | . . Special Weapon . | . . Impact Weapon . | . . Slashing Weapon . | . . Piercing Weapon . | . . Special Melee Weapon . | . . Unidentified Prototypes . | . . Parts Lost 7 | . 7 Power 1 | . 1 Propulsion 4 | . 4 Utility . | . . Weapon 2 | . 2 Highest Loss Streak 4 | . 4 To Critical Strikes . | . . Average Backups 6 | 2 6 Power 1 | . 1 Propulsion 2 | 1 2 Utility 1 | . 1 Weapon 1 | . 1 Tool/Special . | . . Unused Backups 6 | . 6 Power 1 | . 1 Propulsion . | . . Utility 2 | . 2 Weapon 3 | . 3 Tool/Special . | . . Average Slot Usage (%) 94 | . 94 Engine 13 | . 13 Treads 16 | . 16 Wheel 7 | . 7 Device 14 | . 14 Storage 14 | . 14 Energy Gun 4 | . 4 Ballistic Gun 22 | . 22 Peak Build Rating 10 | 7 10 Average Rating 6 | 5 7 On Entrance 3 | . 7 Naked Turns . | . . Heaviest Build 51 | 12 51 Greatest Support 40 | 40 40 Greatest Overweight (x) 4 | . 4 Average Overweight (x) 1 | . 1 Largest Inventory Capacity 20 | 8 20 Average Capacity 13 | 7 14 Most Carried 9 | 4 9 Average Carried 6 | 3 6 Final Capacity 20 | 8 20 Final Carried 8 | 4 8 Class Distribution -------------------- 100% | Mutant Dominant Class ---------------- Mutant | -10/Materials Resources | -11 -10 ----------- Run | Yrd Mat Matter Collected 594 | 294 300 Remotely . | . . Salvage Created 765 | 61 704 Parts 34 | 6 28 Haulers Intercepted . | . . Recyclers Shooed 1 | 1 . Parts Field Recycled . | . . Retrieved Matter . | . . Parts Self-Destructed . | . . Prevented . | . . Kills | -11 -10 ------- Run | Yrd Mat Combat Hostiles Destroyed 14 | . 14 Guns 14 | . 14 Classes Destroyed 4 | 1 3 Builder 1 | . 1 Tunneler 3 | 3 . Recycler 1 | . 1 Grunt 14 | . 14 Best Kill Streak 3 | 1 3 Combat Bots Only 2 | . 2 Max Kills in Single Turn 1 | 1 1 Gunslinging . | . . Exploded . | . . Melee . | . . Uniques/NPCs Destroyed . | . . Combat | -11 -10 -------- Run | Yrd Mat Hostile Shots Fired 98 | . 98 Missed 18 | . 18 Hits 80 | . 80 Projectile 80 | . 80 Critical Strikes 1 | . 1 Part Disruptions 1 | . 1 Damage Taken 1035 | . 1035 Core 258 | . 258 Absorbed by Shields . | . . Core Remaining (%) 100 | 100 . Volleys Fired 88 | 8 80 Largest 2 | 2 2 Hottest 90 | 40 90 Shots Fired 161 | 16 145 Gun 161 | 16 145 Cannon . | . . Launcher . | . . Special . | . . Kinetic 117 | 16 101 Thermal 44 | . 44 Explosive . | . . Electromagnetic . | . . Robot Hit Streak 12 | 4 12 Robot Miss Streak 5 | 2 5 Penetration Max . | . . Secondary Targets 2 | . 2 Max Gunslinging Chain 1 | . 1 Shots Hit Robots 118 | 11 107 Core Hits 44 | 5 39 Critical Kills 1 | . 1 Critical Parts Destroyed 1 | . 1 Critical Strikes 3 | . 3 Burn 1 | . 1 Destroy 2 | . 2 Melee Attacks . | . . Impact . | . . Slashing . | . . Piercing . | . . Sneak Attacks . | . . Combat Hostiles . | . . Follow-up Attacks . | . . Damage Inflicted 1253 | 108 1145 Guns 1253 | 108 1145 Cannons . | . . Explosions . | . . Melee . | . . Ramming . | . . Kinetic 903 | 108 795 Thermal 350 | . 350 Explosive . | . . Electromagnetic . | . . Impact . | . . Slashing . | . . Piercing . | . . Highest Corruption . | . . Average Corruption . | . . Corruption Purged . | . . Corruption Blocked . | . . Overload Shots . | . . Overflow Damage . | . . Projectiles . | . . Explosions . | . . Melee . | . . Knockbacks . | . . Impact . | . . Kinetic . | . . Secondary . | . . Self-Inflicted Damage . | . . Shots . | . . Rammed . | . . Targets Rammed . | . . Kicked . | . . Crushed . | . . Highest Temperature 285 | . 285 Average Temperature 76 | . 76 Received Heat Transfer 579 | . 579 Siege Activations . | . . Martial Activations . | . . Shielding Activations . | . . Robots Disrupted . | . . Combat Hostiles . | . . Robots Corrupted . | . . Combat Hostiles . | . . Parts Fried . | . . Impact Corruptions . | . . Robots Melted . | . . Combat Hostiles . | . . Parts Melted 3 | . 3 Heat Transferred 1051 | . 1051 Parts Sabotaged . | . . Parts Stolen . | . . Parts Stripped . | . . Power Chain Reactions . | . . Alert | -11 -10 ------- Run | Yrd Mat Maximum Alert Level . | . . Low Security (%) 100 | 100 100 Level 1 . | . . Level 2 . | . . Level 3 . | . . Level 4 . | . . Level 5 . | . . High Security . | . . Max Security . | . . Peak Influence 122 | 5 122 Initial 3 | . 3 Average 35 | 1 39 Influence Increases 435 | 15 420 Destroy 0b10 Robot/C 280 | . 280 Destroy 0b10 Robot/NC 25 | 15 10 Destroy Leader 60 | . 60 Successful Hack 9 | . 9 Select Force Hacks 30 | . 30 Destroy Structure 1 | . 1 Lose Combat Pursuer 30 | . 30 Influence Decreases 325 | 10 315 Entered New Map 2 | . 2 Time Decay 253 | 10 243 Lost Part 70 | . 70 Squads Dispatched 4 | . 4 Investigation 2 | . 2 Extermination . | . . Reinforcement 2 | . 2 Assault . | . . Garrison . | . . Intercept . | . . Searches Triggered . | . . Construction Impeded . | . . Haulers Reinforced . | . . Active Scanning Responses . | . . Cargo Convoy Interrupts . | . . Stealth | -11 -10 --------- Run | Yrd Mat Distress Signals 4 | . 4 Communications Jammed . | . . Distress Signals . | . . Times Spotted 27 | . 27 Peak Tracking Total 5 | . 5 Tactical Retreats 2 | . 2 Traps | -11 -10 ------- Run | Yrd Mat Traps Triggered 4 | . 4 Indirectly . | . . Trap Hack Attempts . | . . Triggered . | . . Disarmed . | . . Reprogrammed . | . . Reused . | . . Traps Extracted . | . . Installed . | . . Triggered . | . . Machines | -11 -10 ---------- Run | Yrd Mat Machines Disabled . | . . Max in Single Turn . | . . Machines Repaired . | . . Machines Dismantled . | . . Machines Sabotaged . | . . Overloaded Fab Kills . | . . Hacking | -11 -10 --------- Run | Yrd Mat Machines Accessed 5 | . 5 Terminals 4 | . 4 Fabricators . | . . Repair Stations . | . . Recycling Units 1 | . 1 Scanalyzers . | . . Garrison Access . | . . Total Hacks 19 | . 19 Successful 8 | . 8 Failed 11 | . 11 Catastrophic 1 | . 1 Database Lockouts . | . . Manual 11 | . 11 Terminals 17 | . 17 Fabricators . | . . Repair Stations . | . . Recycling Units 2 | . 2 Scanalyzers . | . . Garrison Access . | . . Terminal Hacks 1 | . 1 Emergency Access Points 1 | . 1 Fabricator Hacks . | . . Repair Station Hacks . | . . Recycling Unit Hacks 1 | . 1 Report Inventory 1 | . 1 Scanalyzer . | . . Garrison Access Hacks . | . . Unauthorized Hacks 6 | . 6 Terminals 5 | . 5 Botnet 2 | . 2 Skim 3 | . 3 Fabricators . | . . Repair Stations . | . . Recycling Units 1 | . 1 Tunnel 1 | . 1 Scanalyzers . | . . Garrison Access . | . . Data Cores Recovered . | . . Used . | . . Hacking Detections 4 | . 4 Full Trace Events 1 | . 1 Feedback Events . | . . Feedback Blocked . | . . Robot Schematics Acquired . | . . Robots Built . | . . Authchips . | . . Time . | . . Total Robot Build Rating . | . . Part Schematics Acquired . | . . Parts Built . | . . Authchips . | . . Time . | . . Total Part Build Rating . | . . Parts Repaired . | . . Time . | . . Parts Recycled . | . . Recycled Matter . | . . Retrieved Matter . | . . Retrieved Components . | . . Parts Scanalyzed . | . . Part Schematics Acquired . | . . Parts Damaged . | . . Bothacking | -11 -10 ------------ Run | Yrd Mat Used RIF Installer . | . . Robots Hacked . | . . Non-combat . | . . Combat . | . . Robot Hacks Applied . | . . Relay Couplers Released . | . . Fabnet Peak Effective % . | . . Robots Rewired . | . . Allies Hacked . | . . Hacks Repelled . | . . Allies | -11 -10 -------- Run | Yrd Mat Total Allies . | . . Largest Group . | . . Highest-Rated Group . | . . Highest-Rated Ally . | . . Total Orders . | . . Ally Attacks . | . . Total Damage . | . . Kills . | . . Allies Corrupted . | . . Allies Melted . | . . Intel | -11 -10 ------- Run | Yrd Mat Active Infowar (turns) 827 | 58 769 Seismic 827 | 58 769 Robot Analysis Total . | . . Derelict Logs Recovered . | . . Drone Launches . | . . Drone Recoveries . | . . Exploration | -11 -10 ------------- Run | Yrd Mat Turns Passed 1000 | 117 883 Spaces Moved 418 | 57 361 Core 10 | 9 1 Treads 235 | 48 187 Legs . | . . Wheels 173 | . 173 Hover . | . . Flight . | . . Fastest Speed 50 | 50 130 Average Speed 147 | 142 148 Slowest Speed 200 | 160 200 Overloaded Moves . | . . Propulsion Burnouts . | . . Robots Hopped . | . . Potential Cave-ins . | . . Cave-ins Triggered . | . . Exploration Rate (%) 30 | 5 56 Regions Visited 1 Branch Regions . Pre-discovered Areas 1 | . 1 Known Exits Taken . | . . Unknown Exits Taken 1 | 1 . Scrap Searched . | . . Spaces Dug . | . . Terrain Destroyed . | . . Melee . | . . Projectile . | . . AOE . | . . Terrain Rammed . | . . Walls Destroyed . | . . Machines Disabled . | . . Actions | -11 -10 --------- Run | Yrd Mat Total 646 | 75 571 Wait 107 | . 107 Move 417 | 56 361 Hop . | . . Pick Up 12 | 4 8 Fast Attach 12 | 7 5 Attach 5 | . 5 Detach . | . . Swap 4 | . 4 Drop 1 | . 1 Fire 88 | 8 80 Melee . | . . Ram . | . . Kick . | . . Crush . | . . Escape Stasis . | . . Rewire . | . . Trap . | . . Miscellaneous . | . . Route ------- -11/Scrapyard -10/Materials (discovered 1 exit: [*Mat]) History --------- Turn | Location | Event 37 | -11/Scrapyard | Discovered new exit (range 15) 118 | -11/Scrapyard | Entered Materials 309 | -10/Materials | Build established: Mutant 556 | -10/Materials | Discovered new exit (range 16) 765 | -10/Materials | Lost 3 parts (1p2n) 844 | -10/Materials | Core integrity fell below 50% 872 | -10/Materials | Core integrity fell below 20% 878 | -10/Materials | Lost 4 parts (2n2w) 1001 | -10/Materials | Destroyed by G-34 Mercenary with Small Laser Last Messages --------------- 00962_ Recycling unit begins recycling process. 00964_ R-06 Scavenger inserts Ion Engine into recycling unit. 00968_ Connecting with Recycling Unit... >>Recycling(Report) Matter reserves: 203 Inventory: Sml. Laser (62%) Terrain Scan Processor (100%) Aluminum Leg (51%) Aluminum Leg (65%) Com. Wheel (76%) Sml. Laser (94%) Aluminum Leg (71%) Lgt. Nuclear Core (92%) Ion Engine (61%) Ion Engine (76%) >>Force(Tunnel) DISCOVERED[-3/Research] 00968_ ALERT: Suspicious activity at Recycling Unit M002. Dispatching Investigation squad. Map ----- +----------------------------------------------------+ | | | | | | | | | | | | | | | | | | | | | ?????????????????????????????????????????????????? | | ?????????????????????????????????????????????????? | | ?????????????????????????????????????????????????? | | ?????????????????????????????????########????????? | | ?????????????????????????????????#] !!**#????????? | | ?????????????????????????????????#] !! *#????????? | | ?????????????????????????#####???# #????????? | | ?????????????????????????#"""#??## ###????????? | | ??????????+###########+###"Y"#### #??????????? | | ????????? #??????????? | | ????????? ^ #??????????? | | ????????? ^ #??????????? | | ????????????###+######## ######## #??????????? | | ???????????????????????# #??????## ##########??? | | ????????????????????####g######### # #??? | | ????????????????????# g/ @ # #%T #??? | | ????????????????????#### ""# +% #??? | | ???????????????????????# """ T"# #* #??? | | ???????????????????????# """ ""# # #??? | | ???????????????????????# """ # # """ #??? | | ???????????????????????# # # """ #??? | | ???????????????????????# # # """ #??? | | ???????????????????????# # # #??? | | ???????????????????????######?/### ##########??? | | ?????????????????????????????????# #???????????? | | ?????????????????????????????????# ############# | | ?????????????????????????????????# #!! [ %+ | | ?????????????????????????????????# #!! ### | | ?????????????????????????????????# # = ### | | ?????????????????????????????????# # """ # | | ?????????????????????????????????# / """ # | | ?????????????????????????????????# # ==""" # | | ?????????????????????????????????# # *%=% # " | | ?????????????????????????????????# # !%* # " | | ?????????????????????????????????# #####+##### " | | ?????????????????????????????????# #???# #???### | | ??????????????? ????????????????# #???# #?????? | | ??????????????? ????????????????# ##### ####### | | ??????????????? ????????#???????# | | ??????????????? ????????#""?????# | +----------------------------------------------------+ Best States ------------- Heat Dissipation 39 Energy Generation 12 Energy Capacity 265 Matter Stores 300 Matter Capacity 300 Sight Range 16 Terrain Scan Density 10 Evasion (%) 50 Recoil Reduction 2 Item Schematics ----------------- None Robot Schematics ------------------ None Fabricated ------------ Nothing Repaired ---------- Nothing Alien Tech Used ----------------- None Achievements -------------- None Challenges ------------ None Game ------ Seed IonicGhostScythe Manual? 0 Play Time 00:07:42 Cumulative 222.0 hours Start 2025.08.02 @ 18:49:01 End 2025.08.02 @ 18:56:46 Sessions 1 Manual Loads 0 Difficulty Rogue Special Mode None Game No. 224 Rogue 224 Adventurer 0 Explorer 0 Win Type - Total 5 Types 1/0/2/1/0/0/0/0/0/1 Lore% 73 Gallery% 69 Achievement% 62 Wizard Run 0 Options --------- Layout 1 ASCII 0 Keyboard 1 Movement Numpad Keybinds 0 Fullscreen 1 Font 32/SmallcapsGlow Map View 77x35 Zoom Use 0% Tactical HUD 1 Map Filters NONE Filters NONE Steam 1 RUN: 0393d8ae-99df-4e6d-8437-953857e15fa0